[Event "TUR-ch Veterans 2019"]
[Site "Belek"]
[Date "2019.01.20"]
[Round "1.2"]
[White "Buker, Muhittin"]
[Black "Paksoy, Eray"]
[Result "1-0"]
[ECO "D52"]
[WhiteElo "1978"]
[BlackElo "1460"]
[Annotator "NA"]
[PlyCount "75"]
[EventDate "2019.01.20"]
[EventType "swiss"]
[EventCountry "TUR"]
[SourceTitle "playchess.com"]
[Source "ChessBase"]
[SourceQuality "1"]
[TimeControl "5400+30"]

1. d4 {[%emt 0:00:30]} d5 {[%emt 0:00:30]} 2. c4 {[%emt 0:00:30]} e6 {[%emt 0:00:30]} 3. Nc3 {[%emt 0:00:30]} Nf6 {[%emt 0:00:30]} 4. Bg5 {[%emt 0:00:30]} Nbd7 {[%emt 0:00:30]} 5. Nf3 {[%emt 0:00:30]} c6 {[%emt 0:00:30]} 6. e3 {[%emt 0:00:30]} Qa5 {[%emt 0:00:30]} 7. Bxf6 {[%emt 0:00:30]} Nxf6 {[%emt 0:00:30]} 8. Nd2 {[%emt 0:00:30]} Bb4 {[%emt 0:00:30]} 9. Qc2 {[%emt 0:00:30]} O-O {[%emt 0:00:30]} 10. Bd3 {[%emt 0:00:30]} dxc4 {[%emt 0:00:30]} 11. Nxc4 {[%emt 0:00:30]} Bxc3+ {[%emt 0:00:30]} 12. bxc3 {[%emt 0:00:30]} Qg5 {[%emt 0:00:30]} 13. O-O {[%emt 0:00:30]} h5 {[%emt 0:00:30]} 14. f4 {[%emt 0:03:30]} Qh6 {[%emt 0:27:30]} 15. Ne5 {[%emt 0:00:30]} Nd5 {[%emt 0:00:30]} 16. Qd2 {[%emt 0:01:30]} Rd8 {[%emt 0:05:30]} 17. c4 {[%emt 0:00:30]} Ne7 {[%emt 0:02:30]} 18. Qb4 {[%emt 0:04:30]} Qf6 {[%emt 0:06:30]} 19. Rae1 {[%emt 0:00:30]} b6 {[%emt 0:02:30]} 20. Be4 {[%emt 0:05:30]} Bb7 {[%emt 0:00:30]} 21. c5 {[%emt 0:01:30]} b5 {[%emt 0:12:30]} 22. Qa5 {[%emt 0:02:30]} Rdc8 {[%emt 0:15:30]} 23. a4 {[%emt 0:02:30]} a6 {[%emt 0:08:33]} 24. Nd7 {[%emt 0:04:30]} Qh6 {[%emt 0:06:01]} 25. Nb6 {[%emt 0:00:30]} g6 {[%emt 0:00:30]} 26. Nxa8 {[%emt 0:00:30]} Bxa8 {[%emt 0:00:30]} 27. Qxa6 {[%emt 0:00:00]} bxa4 {[%emt 0:01:45]} 28. Rb1 {[%emt 0:00:00]} Qf8 {[%emt 0:01:21]} 29. Rb6 {[%emt 0:00:30]} Kg7 {[%emt 0:00:49]} 30. Rfb1 {[%emt 0:00:00]} Nd5 {[%emt 0:00:45]} 31. Bxd5 {[%emt 0:00:00]} exd5 {[%emt 0:00:15]} 32. Qxa4 {[%emt 0:02:30]} Qe8 {[%emt 0:00:39]} 33. Qb3 {[%emt 0:00:30]} Qe7 {[%emt 0:02:44]} 34. Ra1 {[%emt 0:01:30]} h4 {[%emt 0:02:01]} 35. h3 {[%emt 0:00:30]} Kf6 {[%emt 0:00:18]} 36. Ra3 {[%emt 0:00:30]} Ke6 {[%emt 0:00:54]} 37. Rb8 {[%emt 0:02:30]} Qc7 {[%emt 0:00:36]} 38. Raxa8 {[%emt 0:00:00]} 1-0

[Event "TUR-ch Veterans 2019"]
[Site "Belek"]
[Date "2019.01.20"]
[Round "1.3"]
[White "Tepeli, Huseyin"]
[Black "Karadag, Eflatun Cem"]
[Result "1/2-1/2"]
[ECO "C54"]
[WhiteElo "1553"]
[BlackElo "1927"]
[Annotator "NA"]
[PlyCount "42"]
[EventDate "2019.01.20"]
[EventType "swiss"]
[EventCountry "TUR"]
[SourceTitle "playchess.com"]
[Source "ChessBase"]
[SourceQuality "1"]
[TimeControl "5400+30"]

1. e4 {[%emt 0:00:30]} e5 {[%emt 0:00:30]} 2. Nf3 {[%emt 0:00:30]} Nc6 {[%emt 0:00:30]} 3. c3 {[%emt 0:00:30]} Nf6 {[%emt 0:00:30]} 4. d4 {[%emt 0:00:30]} exd4 {[%emt 0:00:30]} 5. e5 {[%emt 0:00:30]} Ne4 {[%emt 0:00:30]} 6. cxd4 {[%emt 0:00:30]} d5 {[%emt 0:00:30]} 7. Bb5 {[%emt 0:00:30]} Bb4+ {[%emt 0:00:30]} 8. Nbd2 {[%emt 0:00:30]} O-O {[%emt 0:00:30]} 9. O-O {[%emt 0:11:30]} Nxd2 {[%emt 0:17:30]} 10. Bxd2 {[%emt 0:00:30]} Bxd2 {[%emt 0:00:30]} 11. Qxd2 {[%emt 0:00:30]} Ne7 {[%emt 0:00:30]} 12. Rac1 {[%emt 0:00:30]} c6 {[%emt 0:00:30]} 13. Ba4 {[%emt 0:00:30]} Bf5 {[%emt 0:00:30]} 14. Nh4 {[%emt 0:00:30]} f6 {[%emt 0:00:30]} 15. Nxf5 {[%emt 0:01:30]} Nxf5 {[%emt 0:00:30]} 16. g4 {[%emt 0:06:30]} Nh4 {[%emt 0:11:30]} 17. f4 {[%emt 0:00:30]} fxe5 {[%emt 0:00:30]} 18. dxe5 {[%emt 0:01:30]} Qb6+ {[%emt 0:02:30]} 19. Kh1 {[%emt 0:00:30]} Rae8 {[%emt 0:00:30]} 20. Rce1 {[%emt 0:01:30]} Ng6 {[%emt 0:04:30]} 21. e6 {[%emt 0:00:30]} Qa6 {[%emt 0:03:30]} 1/2-1/2

[Event "TUR-ch Veterans 2019"]
[Site "Belek"]
[Date "2019.01.20"]
[Round "1.4"]
[White "Cetinkaya, Vedat Ali"]
[Black "Ozates, Veysel"]
[Result "1-0"]
[ECO "D47"]
[WhiteElo "2056"]
[BlackElo "1550"]
[Annotator "NA"]
[PlyCount "147"]
[EventDate "2019.01.20"]
[EventType "swiss"]
[EventCountry "TUR"]
[SourceTitle "playchess.com"]
[Source "ChessBase"]
[SourceQuality "1"]
[TimeControl "5400+30"]

1. d4 {[%emt 0:00:30]} d5 {[%emt 0:00:30]} 2. c4 {[%emt 0:00:30]} c6 {[%emt 0:00:30]} 3. e3 {[%emt 0:00:30]} Nf6 {[%emt 0:00:30]} 4. Nf3 {[%emt 0:00:30]} Nbd7 {[%emt 0:00:30]} 5. Bd3 {[%emt 0:00:30]} e6 {[%emt 0:00:30]} 6. O-O {[%emt 0:00:30]} Be7 {[%emt 0:00:30]} 7. Nc3 {[%emt 0:00:30]} dxc4 {[%emt 0:00:30]} 8. Bxc4 {[%emt 0:00:30]} O-O {[%emt 0:00:30]} 9. e4 {[%emt 0:00:30]} b5 {[%emt 0:00:30]} 10. Bd3 {[%emt 0:00:30]} b4 {[%emt 0:00:30]} 11. Na4 {[%emt 0:00:30]} Bb7 {[%emt 0:00:30]} 12. Bg5 {[%emt 0:00:30]} Qa5 {[%emt 0:00:30]} 13. e5 {[%emt 0:08:30]} Nd5 {[%emt 0:15:30]} 14. Bxe7 {[%emt 0:00:30]} Nxe7 {[%emt 0:00:30]} 15. Ng5 {[%emt 0:01:30]} h6 {[%emt 0:00:30]} 16. Ne4 {[%emt 0:00:30]} Ba6 {[%emt 0:04:30]} 17. Bxa6 {[%emt 0:00:30]} Qxa6 {[%emt 0:00:30]} 18. Nac5 {[%emt 0:00:30]} Nxc5 {[%emt 0:00:30]} 19. Nxc5 {[%emt 0:02:30]} Qb6 {[%emt 0:03:30]} 20. Nd7 {[%emt 0:00:30]} Qb5 {[%emt 0:00:30]} 21. Nxf8 {[%emt 0:00:30]} Rxf8 {[%emt 0:00:30]} 22. Qb3 {[%emt 0:00:00]} Rd8 {[%emt 0:00:30]} 23. Rfd1 {[%emt 0:00:00]} Nf5 {[%emt 0:00:30]} 24. a3 {[%emt 0:00:30]} a5 {[%emt 0:00:30]} 25. axb4 {[%emt 0:00:30]} axb4 {[%emt 0:08:30]} 26. d5 {[%emt 0:04:30]} cxd5 {[%emt 0:05:30]} 27. Qa4 {[%emt 0:01:30]} Qc4 {[%emt 0:06:30]} 28. Qa5 {[%emt 0:02:30]} Rc8 {[%emt 0:00:30]} 29. Qa6 {[%emt 0:00:30]} Qc2 {[%emt 0:04:30]} 30. Rd2 {[%emt 0:04:30]} Qc1+ {[%emt 0:02:30]} 31. Rxc1 {[%emt 0:00:30]} Rxc1+ {[%emt 0:00:30]} 32. Qf1 {[%emt 0:00:30]} Rxf1+ {[%emt 0:00:30]} 33. Kxf1 {[%emt 0:00:30]} Kf8 {[%emt 0:00:30]} 34. Rd3 {[%emt 0:00:30]} Ne7 {[%emt 0:00:30]} 35. f4 {[%emt 0:01:30]} h5 {[%emt 0:02:30]} 36. Rd1 {[%emt 0:00:30]} Ke8 {[%emt 0:00:30]} 37. Ra1 {[%emt 0:00:30]} Nc6 {[%emt 0:01:30]} 38. Ra8+ {[%emt 0:01:30]} Kd7 {[%emt 0:01:30]} 39. Ke2 {[%emt 0:00:30]} g6 {[%emt 0:00:30]} 40. Kd3 {[%emt 0:01:30]} Ke7 {[%emt 0:05:30]} 41. Ra6 {[%emt 0:02:30]} Kd7 {[%emt 0:00:30]} 42. Rb6 {[%emt 0:00:30]} Kc7 {[%emt 0:01:30]} 43. Rb5 {[%emt 0:00:00]} Kc8 {[%emt 0:00:30]} 44. Rb6 {[%emt 0:03:00]} Kc7 {[%emt 0:00:30]} 45. Ra6 {[%emt 0:00:30]} Kb7 {[%emt 0:00:30]} 46. Ra4 {[%emt 0:00:00]} Kb8 {[%emt 0:02:30]} 47. Kc2 {[%emt 0:00:00]} Kb7 {[%emt 0:01:30]} 48. Kb3 {[%emt 0:00:30]} Kb8 {[%emt 0:04:30]} 49. Ra1 {[%emt 0:00:30]} Kb7 {[%emt 0:00:30]} 50. g3 {[%emt 0:00:00]} Nd4+ {[%emt 0:01:30]} 51. Ka4 {[%emt 0:00:00]} Kb6 {[%emt 0:00:30]} 52. Rc1 {[%emt 0:03:30]} Nc6 {[%emt 0:01:30]} 53. Rc2 {[%emt 0:01:30]} Kb7 {[%emt 0:00:30]} 54. Rc5 {[%emt 0:02:30]} Kb6 {[%emt 0:02:30]} 55. Rc1 {[%emt 0:00:00]} d4 {[%emt 0:05:18]} 56. b3 {[%emt 0:01:00]} g5 {[%emt 0:02:33]} 57. h4 {[%emt 0:01:30]} gxf4 {[%emt 0:01:43]} 58. gxf4 {[%emt 0:01:30]} Ne7 {[%emt 0:00:42]} 59. Rc4 {[%emt 0:03:30]} Nc6 {[%emt 0:01:56]} 60. Rc2 {[%emt 0:04:30]} Ne7 {[%emt 0:00:50]} 61. Kxb4 {[%emt 0:00:30]} Nd5+ {[%emt 0:00:27]} 62. Kc4 {[%emt 0:00:30]} Ne3+ {[%emt 0:01:48]} 63. Kd3 {[%emt 0:02:30]} Nxc2 {[%emt 0:00:12]} 64. Kxc2 {[%emt 0:00:30]} Kc5 {[%emt 0:00:53]} 65. Kd3 {[%emt 0:00:30]} Kb4 {[%emt 0:02:23]} 66. Kxd4 {[%emt 0:00:30]} Kxb3 {[%emt 0:00:15]} 67. Kc5 {[%emt 0:00:00]} Kc3 {[%emt 0:00:36]} 68. Kd6 {[%emt 0:00:00]} Kd4 {[%emt 0:00:53]} 69. Ke7 {[%emt 0:00:00]} Ke4 {[%emt 0:00:16]} 70. Kxf7 {[%emt 0:00:00]} Kf5 {[%emt 0:00:38]} 71. Ke7 {[%emt 0:00:30]} Kg4 {[%emt 0:00:30]} 72. Kxe6 {[%emt 0:00:00]} Kxh4 {[%emt 0:00:49]} 73. f5 {[%emt 0:00:00]} Kg3 {[%emt 0:00:16]} 74. f6 {[%emt 0:00:00]} 1-0

[Event "TUR-ch Veterans 2019"]
[Site "Belek"]
[Date "2019.01.20"]
[Round "1.6"]
[White "Yasin, Hur"]
[Black "Ipek, Suat Sukru"]
[Result "1-0"]
[ECO "C62"]
[WhiteElo "2004"]
[BlackElo "1592"]
[Annotator "NA"]
[PlyCount "53"]
[EventDate "2019.01.20"]
[EventType "swiss"]
[EventCountry "TUR"]
[SourceTitle "playchess.com"]
[Source "ChessBase"]
[SourceQuality "1"]
[TimeControl "5400+30"]

1. e4 {[%emt 0:00:30]} e5 {[%emt 0:00:30]} 2. Nf3 {[%emt 0:00:30]} Nc6 {[%emt 0:00:30]} 3. Bb5 {[%emt 0:00:30]} d6 {[%emt 0:00:30]} 4. d4 {[%emt 0:00:30]} Bd7 {[%emt 0:00:30]} 5. c4 {[%emt 0:00:30]} Nxd4 {[%emt 0:00:30]} 6. Bxd7+ {[%emt 0:00:30]} Qxd7 {[%emt 0:00:30]} 7. Nxd4 {[%emt 0:00:30]} exd4 {[%emt 0:00:30]} 8. Qxd4 {[%emt 0:00:30]} c5 {[%emt 0:00:30]} 9. Qd3 {[%emt 0:00:30]} Nf6 {[%emt 0:00:30]} 10. Nc3 {[%emt 0:00:30]} Be7 {[%emt 0:00:30]} 11. O-O {[%emt 0:00:30]} h6 {[%emt 0:17:30]} 12. Rd1 {[%emt 0:12:30]} O-O-O {[%emt 0:08:30]} 13. Rb1 {[%emt 0:02:30]} Qc6 {[%emt 0:03:30]} 14. b4 {[%emt 0:00:30]} g5 {[%emt 0:00:30]} 15. a4 {[%emt 0:00:30]} Kb8 {[%emt 0:02:30]} 16. a5 {[%emt 0:05:30]} cxb4 {[%emt 0:02:30]} 17. Nd5 {[%emt 0:02:30]} Nxd5 {[%emt 0:05:30]} 18. exd5 {[%emt 0:01:30]} Qa4 {[%emt 0:02:30]} 19. Bd2 {[%emt 0:00:30]} Qxa5 {[%emt 0:02:30]} 20. Rxb4 {[%emt 0:02:30]} Qc7 {[%emt 0:02:30]} 21. Rdb1 {[%emt 0:01:30]} b6 {[%emt 0:00:30]} 22. Be3 {[%emt 0:02:30]} Kc8 {[%emt 0:07:30]} 23. Bxb6 {[%emt 0:01:30]} axb6 {[%emt 0:07:30]} 24. Rxb6 {[%emt 0:00:30]} Qa7 {[%emt 0:03:30]} 25. Qb3 {[%emt 0:10:30]} Qa5 {[%emt 0:16:48]} 26. Qh3+ {[%emt 0:02:30]} Rd7 {[%emt 0:01:30]} 27. Rb8+ {[%emt 0:00:30]} 1-0

[Event "TUR-ch Veterans 2019"]
[Site "Belek"]
[Date "2019.01.20"]
[Round "1.8"]
[White "Ozkoc, Ali"]
[Black "Unver, Ibrahim Kaya"]
[Result "1/2-1/2"]
[ECO "A45"]
[WhiteElo "1773"]
[BlackElo "1379"]
[Annotator "NA"]
[PlyCount "54"]
[EventDate "2019.01.20"]
[EventType "swiss"]
[EventCountry "TUR"]
[SourceTitle "playchess.com"]
[Source "ChessBase"]
[SourceQuality "1"]
[TimeControl "5400+30"]

1. d4 {[%emt 0:00:30]} Nf6 {[%emt 0:00:30]} 2. Bf4 {[%emt 0:00:30]} e6 {[%emt 0:00:30]} 3. e3 {[%emt 0:00:30]} c5 {[%emt 0:00:30]} 4. c3 {[%emt 0:00:30]} Nc6 {[%emt 0:00:30]} 5. Nd2 {[%emt 0:00:30]} cxd4 {[%emt 0:00:30]} 6. exd4 {[%emt 0:00:30]} Nd5 {[%emt 0:00:30]} 7. Bg3 {[%emt 0:00:30]} Be7 {[%emt 0:00:30]} 8. Ngf3 {[%emt 0:00:30]} O-O {[%emt 0:00:30]} 9. Bd3 {[%emt 0:00:30]} b6 {[%emt 0:00:30]} 10. Nc4 {[%emt 0:00:30]} d6 {[%emt 0:00:30]} 11. Ne3 {[%emt 0:00:30]} Nf6 {[%emt 0:00:30]} 12. Qe2 {[%emt 0:00:30]} Bb7 {[%emt 0:00:30]} 13. Rd1 {[%emt 0:00:30]} d5 {[%emt 0:00:30]} 14. Ne5 {[%emt 0:21:30]} Rc8 {[%emt 0:20:30]} 15. f4 {[%emt 0:07:30]} g6 {[%emt 0:06:30]} 16. Bf2 {[%emt 0:04:30]} Nh5 {[%emt 0:06:30]} 17. Qf3 {[%emt 0:01:30]} Nxe5 {[%emt 0:06:30]} 18. fxe5 {[%emt 0:06:30]} Qd7 {[%emt 0:07:30]} 19. g4 {[%emt 0:05:30]} Ng7 {[%emt 0:00:30]} 20. Bg3 {[%emt 0:06:30]} f6 {[%emt 0:00:30]} 21. Qg2 {[%emt 0:01:30]} fxe5 {[%emt 0:02:30]} 22. Bxe5 {[%emt 0:00:30]} Bh4+ {[%emt 0:02:30]} 23. Bg3 {[%emt 0:01:30]} Qe7 {[%emt 0:02:30]} 24. Kd2 {[%emt 0:01:30]} Rf7 {[%emt 0:02:30]} 25. Rhf1 {[%emt 0:01:30]} Rcf8 {[%emt 0:02:30]} 26. Rxf7 {[%emt 0:02:30]} Rxf7 {[%emt 0:01:30]} 27. Rf1 {[%emt 0:00:30]} Bg5 {[%emt 0:02:30]} 1/2-1/2

[Event "TUR-ch Veterans 2019"]
[Site "Belek"]
[Date "2019.01.20"]
[Round "1.10"]
[White "Aysoy, Veysi"]
[Black "Colak, Mehmet"]
[Result "1-0"]
[ECO "B26"]
[WhiteElo "1933"]
[BlackElo "1449"]
[Annotator "NA"]
[PlyCount "61"]
[EventDate "2019.01.20"]
[EventType "swiss"]
[EventCountry "TUR"]
[SourceTitle "playchess.com"]
[Source "ChessBase"]
[SourceQuality "1"]
[TimeControl "5400+30"]

1. e4 {[%emt 0:00:30]} c5 {[%emt 0:00:30]} 2. Nc3 {[%emt 0:00:30]} Nc6 {[%emt 0:00:30]} 3. Nge2 {[%emt 0:00:30]} g6 {[%emt 0:00:30]} 4. g3 {[%emt 0:00:30]} Bg7 {[%emt 0:00:30]} 5. Bg2 {[%emt 0:00:30]} e6 {[%emt 0:00:30]} 6. d3 {[%emt 0:00:30]} Nge7 {[%emt 0:00:30]} 7. Be3 {[%emt 0:00:30]} d6 {[%emt 0:00:30]} 8. Qd2 {[%emt 0:00:30]} a6 {[%emt 0:00:30]} 9. Bh6 {[%emt 0:00:30]} O-O {[%emt 0:00:30]} 10. h4 {[%emt 0:17:30]} Ne5 {[%emt 0:26:30]} 11. Bxg7 {[%emt 0:01:30]} Kxg7 {[%emt 0:00:30]} 12. h5 {[%emt 0:02:30]} Ng8 {[%emt 0:05:30]} 13. O-O-O {[%emt 0:03:30]} Ng4 {[%emt 0:04:30]} 14. Rdf1 {[%emt 0:02:30]} e5 {[%emt 0:04:30]} 15. f4 {[%emt 0:08:30]} N8h6 {[%emt 0:06:30]} 16. Kb1 {[%emt 0:05:30]} b5 {[%emt 0:00:30]} 17. Nd5 {[%emt 0:02:30]} b4 {[%emt 0:13:30]} 18. Bf3 {[%emt 0:03:30]} Ra7 {[%emt 0:02:30]} 19. Ne3 {[%emt 0:06:30]} Nxe3 {[%emt 0:01:30]} 20. Qxe3 {[%emt 0:00:30]} Ng4 {[%emt 0:02:30]} 21. Qd2 {[%emt 0:03:30]} Rh8 {[%emt 0:02:30]} 22. Rh4 {[%emt 0:04:30]} f5 {[%emt 0:01:30]} 23. Rfh1 {[%emt 0:02:30]} Nf2 {[%emt 0:04:30]} 24. R1h2 {[%emt 0:01:30]} Ng4 {[%emt 0:00:00]} 25. Bxg4 {[%emt 0:00:30]} fxg4 {[%emt 0:00:00]} 26. hxg6 {[%emt 0:00:30]} Kxg6 {[%emt 0:07:49]} 27. fxe5 {[%emt 0:00:30]} h5 {[%emt 0:00:20]} 28. Nf4+ {[%emt 0:01:30]} Kf7 {[%emt 0:00:34]} 29. Qf2 {[%emt 0:01:30]} Ke8 {[%emt 0:00:24]} 30. Nxh5 {[%emt 0:01:30]} Rxh5 {[%emt 0:01:32]} 31. Rxh5 {[%emt 0:00:30]} 1-0

[Event "TUR-ch Veterans 2019"]
[Site "Belek"]
[Date "2019.01.20"]
[Round "1.11"]
[White "Turkmen, Musa"]
[Black "Sedef, Emin"]
[Result "1/2-1/2"]
[ECO "C01"]
[WhiteElo "1393"]
[BlackElo "1632"]
[Annotator "NA"]
[PlyCount "73"]
[EventDate "2019.01.20"]
[EventType "swiss"]
[EventCountry "TUR"]
[SourceTitle "playchess.com"]
[Source "ChessBase"]
[SourceQuality "1"]
[TimeControl "5400+30"]

1. e4 {[%emt 0:00:30]} e6 {[%emt 0:00:30]} 2. Nf3 {[%emt 0:00:30]} d5 {[%emt 0:00:30]} 3. exd5 {[%emt 0:00:30]} exd5 {[%emt 0:00:30]} 4. d4 {[%emt 0:00:30]} Nf6 {[%emt 0:00:30]} 5. Bg5 {[%emt 0:00:30]} Bd6 {[%emt 0:00:30]} 6. Nc3 {[%emt 0:00:30]} c6 {[%emt 0:00:30]} 7. h3 {[%emt 0:00:30]} O-O {[%emt 0:00:30]} 8. Be2 {[%emt 0:00:30]} h6 {[%emt 0:00:30]} 9. Bxf6 {[%emt 0:00:30]} Qxf6 {[%emt 0:00:30]} 10. O-O {[%emt 0:00:30]} Be6 {[%emt 0:00:30]} 11. a3 {[%emt 0:00:30]} Nd7 {[%emt 0:00:30]} 12. b4 {[%emt 0:00:30]} b5 {[%emt 0:00:30]} 13. Qd2 {[%emt 0:00:30]} Bf4 {[%emt 0:00:30]} 14. Qd1 {[%emt 0:00:30]} Nb6 {[%emt 0:00:30]} 15. Bd3 {[%emt 0:00:30]} Nc4 {[%emt 0:00:30]} 16. Bxc4 {[%emt 0:00:30]} bxc4 {[%emt 0:00:30]} 17. Ne2 {[%emt 0:00:30]} Bd6 {[%emt 0:00:30]} 18. Ng3 {[%emt 0:00:30]} a5 {[%emt 0:00:30]} 19. c3 {[%emt 0:00:30]} axb4 {[%emt 0:00:30]} 20. axb4 {[%emt 0:00:30]} Rxa1 {[%emt 0:00:30]} 21. Qxa1 {[%emt 0:00:30]} Bxh3 {[%emt 0:00:30]} 22. Ne5 {[%emt 0:00:30]} Bc8 {[%emt 0:00:30]} 23. f4 {[%emt 0:00:30]} Bxe5 {[%emt 0:00:30]} 24. fxe5 {[%emt 0:00:30]} Qg6 {[%emt 0:00:30]} 25. Qe1 {[%emt 0:00:30]} Be6 {[%emt 0:00:30]} 26. Qf2 {[%emt 0:00:30]} Ra8 {[%emt 0:00:30]} 27. Nf5 {[%emt 0:00:30]} Qg5 {[%emt 0:00:30]} 28. Nd6 {[%emt 0:00:30]} Qe7 {[%emt 0:00:30]} 29. Qg3 {[%emt 0:00:30]} Ra3 {[%emt 0:00:30]} 30. Nf5 {[%emt 0:00:30]} Bxf5 {[%emt 0:00:30]} 31. Rxf5 {[%emt 0:00:30]} Qxb4 {[%emt 0:00:30]} 32. Rf6 {[%emt 0:00:30]} Rxc3 {[%emt 0:00:30]} 33. Qg4 {[%emt 0:00:30]} Rc1+ {[%emt 0:00:30]} 34. Kh2 {[%emt 0:00:30]} Qe1 {[%emt 0:00:30]} 35. Qc8+ {[%emt 0:00:30]} Kh7 {[%emt 0:00:30]} 36. Qf5+ {[%emt 0:00:30]} Kg8 {[%emt 0:00:30]} 37. Qc8+ {[%emt 0:00:30]} 1/2-1/2

[Event "TUR-ch Veterans 2019"]
[Site "Belek"]
[Date "2019.01.20"]
[Round "1.13"]
[White "Saglam, Sami"]
[Black "Yuksel, Mustafa"]
[Result "0-1"]
[ECO "C01"]
[WhiteElo "1424"]
[BlackElo "2031"]
[Annotator "NA"]
[PlyCount "78"]
[EventDate "2019.01.20"]
[EventType "swiss"]
[EventCountry "TUR"]
[SourceTitle "playchess.com"]
[Source "ChessBase"]
[SourceQuality "1"]
[TimeControl "5400+30"]

1. e4 {[%emt 0:00:30]} e6 {[%emt 0:00:30]} 2. d4 {[%emt 0:00:30]} d5 {[%emt 0:00:30]} 3. exd5 {[%emt 0:00:30]} exd5 {[%emt 0:00:30]} 4. Nf3 {[%emt 0:00:30]} Nc6 {[%emt 0:00:30]} 5. h3 {[%emt 0:00:30]} Bd6 {[%emt 0:00:30]} 6. Bd3 {[%emt 0:00:30]} Nge7 {[%emt 0:00:30]} 7. c3 {[%emt 0:00:30]} Bf5 {[%emt 0:00:30]} 8. O-O {[%emt 0:00:30]} Qd7 {[%emt 0:00:30]} 9. Bxf5 {[%emt 0:00:30]} Qxf5 {[%emt 0:00:30]} 10. Re1 {[%emt 0:00:30]} O-O-O {[%emt 0:00:30]} 11. Be3 {[%emt 0:00:30]} f6 {[%emt 0:00:30]} 12. Nh4 {[%emt 0:00:30]} Qd7 {[%emt 0:00:30]} 13. f4 {[%emt 0:00:30]} g5 {[%emt 0:00:30]} 14. fxg5 {[%emt 0:00:30]} fxg5 {[%emt 0:00:30]} 15. Bxg5 {[%emt 0:00:30]} Rhg8 {[%emt 0:00:30]} 16. Qh5 {[%emt 0:00:30]} Rxg5 {[%emt 0:00:30]} 17. Qxg5 {[%emt 0:00:30]} Rg8 {[%emt 0:00:30]} 18. Qe3 {[%emt 0:00:30]} Bg3 {[%emt 0:00:30]} 19. Nf3 {[%emt 0:00:30]} Bxe1 {[%emt 0:00:30]} 20. Nxe1 {[%emt 0:00:30]} Nf5 {[%emt 0:00:30]} 21. Qf4 {[%emt 0:00:30]} Ng3 {[%emt 0:00:30]} 22. Kh2 {[%emt 0:00:30]} Nh5 {[%emt 0:00:30]} 23. Qf3 {[%emt 0:00:30]} Qd6+ {[%emt 0:00:30]} 24. Kg1 {[%emt 0:00:30]} Ng3 {[%emt 0:00:30]} 25. Nd2 {[%emt 0:00:30]} h5 {[%emt 0:00:30]} 26. Nd3 {[%emt 0:00:30]} Rf8 {[%emt 0:00:30]} 27. Qe3 {[%emt 0:00:30]} Nf5 {[%emt 0:00:30]} 28. Qg5 {[%emt 0:00:30]} Nce7 {[%emt 0:00:30]} 29. Ne5 {[%emt 0:00:30]} h4 {[%emt 0:00:30]} 30. Rf1 {[%emt 0:00:30]} b6 {[%emt 0:00:30]} 31. Rf3 {[%emt 0:00:30]} Kb7 {[%emt 0:00:30]} 32. Nf1 {[%emt 0:00:30]} Qe6 {[%emt 0:00:30]} 33. a4 {[%emt 0:00:30]} Rg8 {[%emt 0:00:30]} 34. Qh5 {[%emt 0:00:30]} Rg7 {[%emt 0:00:30]} 35. b4 {[%emt 0:00:30]} Qg8 {[%emt 0:00:30]} 36. Ng4 {[%emt 0:00:30]} Rg5 {[%emt 0:00:30]} 37. Rxf5 {[%emt 0:00:30]} Nxf5 {[%emt 0:00:30]} 38. Qxg5 {[%emt 0:00:30]} Qxg5 {[%emt 0:00:30]} 39. Ne5 {[%emt 0:00:30]} Ne3 {[%emt 0:00:30]} 0-1

[Event "TUR-ch Veterans 2019"]
[Site "Belek"]
[Date "2019.01.20"]
[Round "1.13"]
[White "Saglam, Sami"]
[Black "Yuksel, Mustafa"]
[Result "*"]
[ECO "D02"]
[WhiteElo "1424"]
[BlackElo "2031"]
[Annotator "NA"]
[PlyCount "20"]
[EventDate "2019.01.20"]
[EventType "swiss"]
[EventCountry "TUR"]
[SourceTitle "playchess.com"]
[Source "ChessBase"]
[SourceQuality "1"]
[TimeControl "5400+30"]

1. d4 {[%emt 0:00:30]} Nf6 {[%emt 0:00:30]} 2. Bf4 {[%emt 0:00:00]} d5 {[%emt 0:00:30]} 3. e3 {[%emt 0:02:00]} e6 {[%emt 0:00:30]} 4. Nd2 {[%emt 0:01:30]} c5 {[%emt 0:01:00]} 5. c3 {[%emt 0:00:30]} Nc6 {[%emt 0:00:30]} 6. Ngf3 {[%emt 0:01:30]} Be7 {[%emt 0:03:30]} 7. Bd3 {[%emt 0:02:30]} Nh5 {[%emt 0:01:30]} 8. Bg3 {[%emt 0:01:30]} Nxg3 {[%emt 0:01:30]} 9. hxg3 {[%emt 0:00:30]} g6 {[%emt 0:01:30]} 10. Bb5 {[%emt 0:04:00]} a6 {[%emt 0:04:30]} *

[Event "TUR-ch Veterans 2019"]
[Site "Belek"]
[Date "2019.01.20"]
[Round "1.14"]
[White "Cicek, Cemil"]
[Black "Tekeli, Savran"]
[Result "1-0"]
[ECO "C02"]
[WhiteElo "1999"]
[BlackElo "1478"]
[Annotator "NA"]
[PlyCount "71"]
[EventDate "2019.01.20"]
[EventType "swiss"]
[EventCountry "TUR"]
[SourceTitle "playchess.com"]
[Source "ChessBase"]
[SourceQuality "1"]
[TimeControl "5400+30"]

1. e4 {[%emt 0:00:30]} e6 {[%emt 0:00:30]} 2. d4 {[%emt 0:00:30]} d5 {[%emt 0:00:30]} 3. e5 {[%emt 0:00:30]} c5 {[%emt 0:00:30]} 4. c3 {[%emt 0:00:30]} Nc6 {[%emt 0:00:30]} 5. Nf3 {[%emt 0:00:30]} f6 {[%emt 0:00:30]} 6. exf6 {[%emt 0:00:30]} Nxf6 {[%emt 0:00:30]} 7. Bd3 {[%emt 0:00:30]} cxd4 {[%emt 0:00:30]} 8. cxd4 {[%emt 0:00:30]} Bb4+ {[%emt 0:00:30]} 9. Nc3 {[%emt 0:00:30]} Ne4 {[%emt 0:00:30]} 10. Qc2 {[%emt 0:00:30]} Qb6 {[%emt 0:00:30]} 11. Bxe4 {[%emt 0:00:30]} Nxd4 {[%emt 0:00:30]} 12. Nxd4 {[%emt 0:00:30]} Qxd4 {[%emt 0:00:30]} 13. Bd3 {[%emt 0:00:30]} Qe5+ {[%emt 0:00:30]} 14. Kf1 {[%emt 0:00:30]} d4 {[%emt 0:00:30]} 15. Qa4+ {[%emt 0:00:30]} Bd7 {[%emt 0:00:30]} 16. Qxb4 {[%emt 0:00:30]} dxc3 {[%emt 0:00:30]} 17. Qxc3 {[%emt 0:00:30]} Qd5 {[%emt 0:00:30]} 18. Bc4 {[%emt 0:00:30]} Qd1+ {[%emt 0:00:30]} 19. Qe1 {[%emt 0:00:30]} Qg4 {[%emt 0:00:30]} 20. Be2 {[%emt 0:00:30]} Qg6 {[%emt 0:00:30]} 21. Qb4 {[%emt 0:00:30]} Bc6 {[%emt 0:00:30]} 22. f3 {[%emt 0:00:30]} Rf8 {[%emt 0:00:30]} 23. Be3 {[%emt 0:00:30]} a5 {[%emt 0:00:30]} 24. Qc3 {[%emt 0:00:30]} Kf7 {[%emt 0:00:30]} 25. h4 {[%emt 0:00:30]} Kg8 {[%emt 0:00:30]} 26. h5 {[%emt 0:00:30]} Qf7 {[%emt 0:00:30]} 27. h6 {[%emt 0:00:30]} g6 {[%emt 0:00:30]} 28. Rh4 {[%emt 0:00:30]} Qf6 {[%emt 0:00:30]} 29. Qxf6 {[%emt 0:00:30]} Rxf6 {[%emt 0:00:30]} 30. Rd4 {[%emt 0:00:30]} Raf8 {[%emt 0:00:30]} 31. Rad1 {[%emt 0:00:30]} e5 {[%emt 0:00:30]} 32. Bc4+ {[%emt 0:00:30]} Kh8 {[%emt 0:00:30]} 33. Rd8 {[%emt 0:00:30]} Be8 {[%emt 0:00:30]} 34. Bc5 {[%emt 0:00:30]} b5 {[%emt 0:00:30]} 35. Bxf8 {[%emt 0:00:30]} Rxf8 {[%emt 0:00:30]} 36. Bf7 {[%emt 0:00:30]} 1-0